fUST/lending_fUST_20240507
["ID","MTS","AMOUNT","RATE_DAILY","PERIOD"]
[326517459,1715037309071,-500.0,0.00017534,2]
[326517460,1715037309411,-500.0,0.00017534,2]
[326517461,1715037309440,-500.0,0.00017534,2]
[326517462,1715037309469,-500.0,0.00017534,2]
[326517463,1715037309497,-500.0,0.00017534,2]
[326517464,1715037309526,-500.0,0.00017534,2]
[326517465,1715037309553,-1682.22,0.00017534,2]
[326517466,1715037309582,-500.0,0.00017534,2]
[326517467,1715037309612,-500.0,0.00017534,2]
[326517468,1715037309641,-500.0,0.00017534,2]
[326517469,1715037309672,-500.0,0.00017534,2]
[326517470,1715037309700,-220.57243412,0.00017534,2]
[326517471,1715037309728,-500.0,0.00017534,2]
[326517472,1715037309755,-500.0,0.00017534,2]
[326517473,1715037309784,-500.0,0.00017534,2]
[326517474,1715037309812,-53.61276306,0.00017534,2]
[326517475,1715037314279,-500.0,0.00016438,2]
[326517476,1715037314306,-500.0,0.00016438,2]
[326517477,1715037314333,-642.04,0.00016438,2]
[326517478,1715037314362,-500.0,0.00016712,2]
[326517479,1715037314391,-642.04,0.00016712,2]
[326517480,1715037314419,-500.0,0.00016986,2]
[326517481,1715037314446,-459.21723694,0.00017534,2]
[326517482,1715037314474,-237.72533079,0.00017534,2]
[326517483,1715037314501,-500.0,0.00017534,2]
[326517484,1715037314528,-500.0,0.00017534,2]
[326517485,1715037314556,-500.0,0.00017534,2]
[326517486,1715037314586,-500.0,0.00017534,2]
[326517487,1715037314616,-637.33,0.00017534,2]
[326517488,1715037314644,-500.0,0.00017534,2]
[326517489,1715037314672,-500.0,0.00017534,2]
[326517490,1715037314699,-500.0,0.00017534,2]
[326517491,1715037314725,-500.0,0.00017534,2]
[326517492,1715037314752,-500.0,0.00017534,2]
[326517493,1715037314779,-500.0,0.00017534,2]
[326517494,1715037314805,-500.0,0.00017534,2]
[326517495,1715037314832,-500.0,0.00017534,2]
[326517496,1715037314860,-500.0,0.00017534,2]
[326517497,1715037314886,-500.0,0.00017534,2]
[326517498,1715037314914,-500.0,0.00017534,2]
[326517499,1715037314942,-605.1,0.00017534,2]
[326517500,1715037314969,-500.0,0.00017534,2]
[326517501,1715037314997,-500.0,0.00017534,2]
[326517502,1715037315024,-614.54,0.00017534,2]
[326517503,1715037315060,-294.95577709,0.00017534,2]
[326517504,1715037315089,-500.0,0.00017534,2]
[326517505,1715037315119,-1762.63,0.00017534,2]
[326517506,1715037316241,-716.16,0.00017534,2]
[326517507,1715037316289,-500.0,0.00017534,2]
[326517508,1715037316326,-1653.99,0.00017534,2]
[326517509,1715037316398,-468.27312875,0.00017534,2]
[326517510,1715037316446,-500.0,0.00017534,2]
[326517511,1715037316492,-500.0,0.00017534,2]
[326517512,1715037316536,-7164.18,0.00017534,2]
[326517513,1715037317069,-500.0,0.00017534,2]
[326517514,1715037317453,-814.19,0.00017534,2]
[326517515,1715037317480,-500.0,0.00017534,2]
[326517516,1715037317507,-638.09,0.00017534,2]
[326517517,1715037317534,-2980.84,0.00017534,2]
[326517518,1715037317561,-500.0,0.00017534,2]
[326517519,1715037317589,-500.0,0.00017534,2]
[326517520,1715037317619,-500.0,0.00017534,2]
[326517521,1715037317648,-964.1,0.00017534,2]
[326517522,1715037317677,-1175.2,0.00017534,2]
[326517523,1715037317704,-500.0,0.00017534,2]
[326517524,1715037317731,-500.0,0.00017534,2]
[326517525,1715037317764,-3490.17,0.00017534,2]
[326517526,1715037317791,-500.0,0.00017534,2]
[326517527,1715037317818,-500.0,0.00017534,2]
[326517528,1715037317845,-500.0,0.00017534,2]
[326517529,1715037319453,-500.0,0.00017534,2]
[326517530,1715037320939,-1343.05,0.00017534,2]
[326517531,1715037321509,-500.0,0.00017534,2]
[326517532,1715037322570,-500.0,0.00017534,2]
[326517533,1715037324493,-1537.71,0.00017534,2]
[326517534,1715037326295,-500.0,0.00017534,2]
[326517535,1715037326324,-566.68,0.00017534,2]
[326517536,1715037326575,-561.7,0.00017534,2]
[326517537,1715037326840,-2795.46,0.00017534,2]
[326517538,1715037326867,-772.47,0.00017534,2]
[326517539,1715037326893,-5916.93,0.00017534,2]
[326517540,1715037326918,-500.0,0.00017534,2]
[326517541,1715037326943,-500.0,0.00017534,2]
[326517542,1715037326970,-310.87439583,0.00017534,2]
[326517543,1715037327010,-500.0,0.00017534,2]
[326517544,1715037327043,-5203.82,0.00017534,2]
[326517545,1715037327072,-708.24,0.00017534,2]
[326517546,1715037327100,-763.95,0.00017534,2]
[326517547,1715037327126,-677.0,0.00017534,2]
[326517548,1715037327154,-3367.64,0.00017534,2]
[326517549,1715037327181,-1503.71,0.00017534,2]
[326517550,1715037327208,-1801.55,0.00017534,2]
[326517551,1715037327237,-151.0,0.00017534,2]
[326517552,1715037327264,-151.0,0.00017534,2]
[326517553,1715037327292,-3056.6,0.00017534,2]
[326517554,1715037327319,-500.0,0.00017534,2]
[326517555,1715037327345,-500.0,0.00017534,2]
[326517556,1715037327373,-20849.8441306,0.00017534,2]
[326517557,1715037362711,-552.875707,0.0001633,2]
[326517558,1715037362738,-1160.92789741,0.00016338,2]
[326517559,1715037362765,-500.0,0.00016438,2]
[326517560,1715037362792,-500.0,0.00016438,2]
[326517561,1715037362818,-500.0,0.00016438,2]
[326517562,1715037362846,-2213.07,0.00016438,2]
[326517563,1715037362874,-560.69,0.00016438,2]
[326517564,1715037362901,-500.0,0.00016438,2]
[326517565,1715037362928,-500.0,0.00016438,2]
[326517566,1715037362953,-500.0,0.00016438,2]
[326517567,1715037362980,-644.57,0.00016438,2]
[326517568,1715037363007,-3204.22,0.00016438,2]
[326517569,1715037363033,-366.16990144,0.00016712,2]
[326517570,1715037363060,-500.0,0.00016712,2]
[326517571,1715037363087,-500.0,0.00016712,2]
[326517572,1715037363112,-2213.07,0.00016712,2]
[326517573,1715037363138,-560.69,0.00016712,2]
[326517574,1715037363167,-500.0,0.00016712,2]
[326517575,1715037363192,-500.0,0.00016712,2]
[326517576,1715037363218,-500.0,0.00016712,2]
[326517577,1715037363244,-644.57,0.00016712,2]
[326517578,1715037363270,-3204.22,0.00016712,2]
[326517579,1715037363297,-366.78227339,0.00016916,2]
[326517580,1715037363324,-642.04,0.00016986,2]
[326517581,1715037363351,-500.0,0.00016986,2]
[326517582,1715037363378,-500.0,0.00016986,2]
[326517583,1715037363420,-2213.07,0.00016986,2]
[326517584,1715037363449,-560.69,0.00016986,2]
[326517585,1715037363479,-500.0,0.00016986,2]
[326517586,1715037363508,-500.0,0.00016986,2]
[326517587,1715037363536,-500.0,0.00016986,2]
[326517588,1715037363565,-644.57,0.00016986,2]
[326517589,1715037363596,-3204.22,0.00016986,2]
[326517590,1715037363624,-483.81492302,0.00017259,2]
[326517591,1715037363652,-1974.36777052,0.00017259,2]
[326517592,1715037363680,-500.0,0.0001726,2]
[326517593,1715037363709,-642.04,0.0001726,2]
[326517594,1715037363737,-500.0,0.0001726,2]
[326517595,1715037363764,-285.22063736,0.0001726,2]
[326517596,1715037363790,-500.0,0.0001726,2]
[326517597,1715037363817,-2213.07,0.0001726,2]
[326517598,1715037363844,-560.69,0.0001726,2]
[326517599,1715037363873,-500.0,0.0001726,2]
[326517600,1715037363904,-500.0,0.0001726,2]
[326517601,1715037363931,-500.0,0.0001726,2]
[326517602,1715037363959,-644.57,0.0001726,2]
[326517603,1715037363988,-3204.22,0.0001726,2]
[326517604,1715037364016,-273.25764425,0.00017533,2]
[326517605,1715037364043,-7946.92894707,0.00017533,2]
[326517606,1715037364075,-6343.4158694,0.00017534,2]
[326517607,1715037364102,-757.66,0.00017534,2]
[326517608,1715037364128,-695.68,0.00017534,2]
[326517609,1715037364160,-500.0,0.00017534,2]
[326517610,1715037364187,-500.0,0.00017534,2]
[326517611,1715037364697,-500.0,0.00017534,2]
[326517612,1715037365172,-500.0,0.00017534,2]
[326517613,1715037365200,-500.0,0.00017534,2]
[326517614,1715037365239,-642.04,0.00017534,2]
[326517615,1715037365270,-500.0,0.00017534,2]
[326517616,1715037365299,-500.0,0.00017534,2]
[326517617,1715037365328,-2213.07,0.00017534,2]
[326517618,1715037365356,-560.69,0.00017534,2]
[326517619,1715037365385,-500.0,0.00017534,2]
[326517620,1715037365429,-500.0,0.00017534,2]
[326517621,1715037365460,-500.0,0.00017534,2]
[326517622,1715037365492,-644.57,0.00017534,2]
[326517623,1715037365526,-3204.22,0.00017534,2]
[326517624,1715037365559,-304.5,0.00017538,3]
[326517625,1715037365590,-1965.18081837,0.000176,2]
[326517626,1715037365621,-2978.100592,0.0001762,2]
[326517627,1715037365659,-3351.229439,0.0001762,2]
[326517628,1715037365690,-744.525148,0.0001762,2]
[326517629,1715037365718,-186.131287,0.0001762,2]
[326517630,1715037365746,-167.50457,0.0001762,2]
[326517631,1715037365999,-628.349645,0.0001762,2]
[326517632,1715037366029,-502.51371,0.0001762,2]
[326517633,1715037366060,-304.5,0.00017746,3]
[326517634,1715037366088,-560.9,0.00017808,2]
[326517635,1715037366117,-603.64,0.00017808,2]
[326517636,1715037366150,-210.57914859,0.00017808,2]
[326517637,1715037366177,-500.0,0.00017808,2]
[326517638,1715037366203,-500.0,0.00017808,2]
[326517639,1715037366233,-500.0,0.00017808,2]
[326517640,1715037366262,-749.34,0.00017808,2]
[326517641,1715037366291,-500.0,0.00017808,2]
[326517642,1715037366320,-500.0,0.00017808,2]
[326517643,1715037366347,-500.0,0.00017808,2]
[326517644,1715037366374,-185.13629368,0.00017808,2]
[326517645,1715037366403,-500.0,0.00017808,2]
[326517646,1715037366431,-500.0,0.00017808,2]
[326517647,1715037366459,-500.0,0.00017808,2]
[326517648,1715037366488,-455.43967439,0.00017808,2]
[326517649,1715037366517,-500.0,0.00017808,2]
[326517650,1715037366544,-500.0,0.00017808,2]
[326517651,1715037366571,-500.0,0.00017808,2]
[326517652,1715037366601,-1682.22,0.00017808,2]
[326517653,1715037366631,-500.0,0.00017808,2]
[326517654,1715037366666,-500.0,0.00017808,2]
[326517655,1715037366697,-500.0,0.00017808,2]
[326517656,1715037366725,-500.0,0.00017808,2]
[326517657,1715037366752,-500.0,0.00017808,2]
[326517658,1715037366779,-500.0,0.00017808,2]
[326517659,1715037366805,-500.0,0.00017808,2]
[326517660,1715037366832,-512.83,0.00017808,2]
[326517661,1715037366859,-500.0,0.00017808,2]
[326517662,1715037366887,-500.0,0.00017808,2]
[326517663,1715037366918,-500.0,0.00017808,2]
[326517664,1715037366947,-500.0,0.00017808,2]
[326517665,1715037366974,-161.40810311,0.00017808,2]
[326517666,1715037367250,-475.92189689,0.00017808,2]
[326517667,1715037367278,-500.0,0.00017808,2]
[326517668,1715037367308,-500.0,0.00017808,2]
[326517669,1715037367337,-500.0,0.00017808,2]
[326517670,1715037367366,-500.0,0.00017808,2]
[326517671,1715037367395,-500.0,0.00017808,2]
[326517672,1715037367428,-500.0,0.00017808,2]
[326517673,1715037367456,-500.0,0.00017808,2]
[326517674,1715037367485,-500.0,0.00017808,2]
[326517675,1715037367513,-500.0,0.00017808,2]
[326517676,1715037367544,-446.85731859,0.00017808,2]
[326517677,1715037368167,-500.0,0.00017808,2]
[326517678,1715037369495,-605.1,0.00017808,2]
[326517679,1715037369526,-500.0,0.00017808,2]
[326517680,1715037369554,-500.0,0.00017808,2]
[326517681,1715037369582,-500.0,0.00017808,2]
[326517682,1715037369613,-716.16,0.00017808,2]
[326517683,1715037369643,-419.92101189,0.00017808,2]
[326517684,1715037369675,-1653.99,0.00017808,2]
[326517685,1715037369706,-500.0,0.00017808,2]
[326517686,1715037369736,-500.0,0.00017808,2]
[326517687,1715037369767,-7164.18,0.00017808,2]
[326517688,1715037369796,-500.0,0.00017808,2]
[326517689,1715037369824,-500.0,0.00017808,2]
[326517690,1715037369854,-638.09,0.00017808,2]
[326517691,1715037369884,-2980.84,0.00017808,2]
[326517692,1715037369916,-500.0,0.00017808,2]
[326517693,1715037369944,-500.0,0.00017808,2]
[326517694,1715037369972,-373.57937821,0.00017808,2]
[326517695,1715037370004,-964.1,0.00017808,2]
[326517696,1715037370046,-1175.2,0.00017808,2]
[326517697,1715037370653,-500.0,0.00017808,2]
[326517698,1715037371296,-500.0,0.00017808,2]
[326517699,1715037373003,-3490.17,0.00017808,2]
[326517700,1715037373668,-500.0,0.00017808,2]
[326517701,1715037374313,-500.0,0.00017808,2]
[326517702,1715037374343,-500.0,0.00017808,2]
[326517703,1715037374371,-1343.05,0.00017808,2]
[326517704,1715037374399,-500.0,0.00017808,2]
[326517705,1715037374429,-500.0,0.00017808,2]
[326517706,1715037374458,-1537.71,0.00017808,2]
[326517707,1715037374487,-500.0,0.00017808,2]
[326517708,1715037374516,-566.68,0.00017808,2]
[326517709,1715037374544,-772.47,0.00017808,2]
[326517710,1715037374572,-5916.93,0.00017808,2]
[326517711,1715037374602,-500.0,0.00017808,2]
[326517712,1715037374632,-500.0,0.00017808,2]
[326517713,1715037374663,-500.0,0.00017808,2]
[326517714,1715037374695,-5203.82,0.00017808,2]
[326517715,1715037374723,-763.95,0.00017808,2]
[326517716,1715037374753,-677.0,0.00017808,2]
[326517717,1715037374783,-3367.64,0.00017808,2]
[326517718,1715037374813,-1503.71,0.00017808,2]
[326517719,1715037374842,-1801.55,0.00017808,2]
[326517720,1715037374871,-151.0,0.00017808,2]
[326517721,1715037374905,-151.0,0.00017808,2]
[326517722,1715037374935,-3056.6,0.00017808,2]
[326517723,1715037374965,-500.0,0.00017808,2]
[326517724,1715037374995,-500.0,0.00017808,2]
[326517725,1715037375027,-27193.26,0.00017808,2]
[326517726,1715037375055,-757.66,0.00017808,2]
[326517727,1715037375089,-695.68,0.00017808,2]
[326517728,1715037375121,-500.0,0.00017808,2]
[326517729,1715037375151,-500.0,0.00017808,2]
[326517730,1715037375182,-500.0,0.00017808,2]
[326517731,1715037375212,-500.0,0.00017808,2]
[326517732,1715037375242,-642.04,0.00017808,2]
[326517733,1715037375273,-500.0,0.00017808,2]
[326517734,1715037375303,-2213.07,0.00017808,2]
[326517735,1715037375334,-560.69,0.00017808,2]
[326517736,1715037375365,-500.0,0.00017808,2]
[326517737,1715037375396,-500.0,0.00017808,2]
[326517738,1715037375426,-500.0,0.00017808,2]
[326517739,1715037375456,-20.38039442,0.00017808,2]
[326517740,1715037412372,-52300.86890185,0.00016338,2]
[326517741,1715037413021,-500.0,0.00016438,2]
[326517742,1715037414660,-523.71,0.00016438,2]
[326517743,1715037415978,-1252.72,0.00016438,2]
[326517744,1715037417491,-597.56,0.00016438,2]
[326517745,1715037418429,-538.93454461,0.00016438,2]
[326517746,1715037419161,-1395.41,0.00016438,2]
[326517747,1715037419943,-5373.14,0.00016438,2]
[326517748,1715037420832,-500.0,0.00016712,2]
[326517749,1715037421261,-523.71,0.00016712,2]
[326517750,1715037421639,-1252.72,0.00016712,2]
[326517751,1715037421687,-597.56,0.00016712,2]
[326517752,1715037422194,-1395.41,0.00016712,2]
[326517753,1715037422227,-5373.14,0.00016712,2]
[326517754,1715037422261,-500.0,0.00016986,2]
[326517755,1715037422294,-523.71,0.00016986,2]
[326517756,1715037422326,-1252.72,0.00016986,2]
[326517757,1715037422358,-597.56,0.00016986,2]
[326517758,1715037422390,-1395.41,0.00016986,2]
[326517759,1715037422424,-5373.14,0.00016986,2]
[326517760,1715037422651,-500.0,0.0001726,2]
[326517761,1715037423528,-523.71,0.0001726,2]
[326517762,1715037424008,-1252.72,0.0001726,2]
[326517763,1715037424728,-597.56,0.0001726,2]
[326517764,1715037424803,-1395.41,0.0001726,2]
[326517765,1715037424894,-5373.14,0.0001726,2]
[326517766,1715037426496,-500.0,0.00017534,2]
[326517767,1715037427318,-285.22063736,0.00017534,2]
[326517768,1715037428987,-523.71,0.00017534,2]
[326517769,1715037429623,-1252.72,0.00017534,2]
[326517770,1715037430716,-597.56,0.00017534,2]
[326517771,1715037431538,-1395.41,0.00017534,2]
[326517772,1715037432776,-4035.41591618,0.00017534,2]
[326517773,1715037541262,150.71364408,0.00022631,30]
[326517774,1715037541327,150.71364408,0.00022179,120]
[326517775,1715037738905,150.0,0.00027171,120]
[326517785,1715038177345,10381.0,0.00027,30]
[326517789,1715038209658,483.81492302,9.999e-05,2]
[326517790,1715038229204,500.0,0.00027,30]
[326518393,1715038247929,-369.74029441,0.00014426,2]
[326518395,1715038247939,-483.81492302,0.00014721,2]
[326518396,1715038247950,-24900.0,0.00014722,2]
[326518400,1715038247960,-449.0069192,0.00014758,2]
[326518402,1715038247971,-1682.8508983,0.00014842,2]
[326518405,1715038247993,-276.437853,0.00014925,2]
[326518407,1715038248004,-157.61089005,0.00015099,2]
[326518409,1715038248016,-157.61088999,0.00015194,2]
[326518411,1715038248027,-539.413794,0.0001589,2]
[326518413,1715038248038,-816.25139438,0.00016029,2]
[326518415,1715038248049,-160.85712775,0.00016338,2]
[326518417,1715038248059,-1133.83427297,0.00016437,2]
[326518419,1715038248070,-500.0,0.00016438,2]
[326518421,1715038248080,-500.0,0.00016438,2]
[326518423,1715038248091,-500.0,0.00016438,2]
[326518425,1715038248103,-500.0,0.00016438,2]
[326518427,1715038248114,-500.0,0.00016438,2]
[326518429,1715038248124,-500.0,0.00016438,2]
[326518431,1715038248134,-500.0,0.00016438,2]
[326518433,1715038248144,-500.0,0.00016438,2]
[326518435,1715038248155,-557.92796466,0.00016438,2]
[326518437,1715038248167,-500.0,0.00016438,2]
[326518439,1715038248180,-500.0,0.00016438,2]
[326518441,1715038248191,-1240.5,0.00016438,2]
[326518443,1715038248201,-500.0,0.00016438,2]
[326518445,1715038248212,-500.0,0.00016438,2]
[326518447,1715038248222,-881.4,0.00016438,2]
[326518449,1715038248233,-257.76340834,0.00016438,2]
[326518451,1715038248245,-635.45139303,0.00016438,2]
[326518453,1715038248255,-500.0,0.00016438,2]
[326518455,1715038248266,-500.0,0.00016438,2]
[326518457,1715038248276,-500.0,0.00016438,2]
[326518459,1715038248286,-363.94577727,0.00016438,2]
[326518461,1715038248296,-500.0,0.00016438,2]
[326518463,1715038248306,-500.0,0.00016438,2]
[326518465,1715038248325,-500.0,0.00016438,2]
[326518467,1715038248341,-500.0,0.00016438,2]
[326518469,1715038248352,-500.0,0.00016438,2]
[326518471,1715038248371,-524.50241068,0.00016438,2]
[326518473,1715038248383,-500.0,0.00016438,2]
[326518475,1715038248395,-500.0,0.00016438,2]
[326518477,1715038248405,-500.0,0.00016438,2]
[326518479,1715038248416,-1351.16,0.00016438,2]
[326518481,1715038248427,-500.0,0.00016438,2]
[326518483,1715038248437,-500.0,0.00016438,2]
[326518485,1715038248447,-568.25,0.00016438,2]
[326518487,1715038248458,-579.35,0.00016438,2]
[326518489,1715038248469,-500.0,0.00016438,2]
[326518491,1715038248479,-562.0,0.00016438,2]
[326518493,1715038248489,-500.0,0.00016438,2]
[326518495,1715038248499,-500.0,0.00016438,2]
[326518497,1715038248509,-500.0,0.00016438,2]
[326518499,1715038248520,-154.76784823,0.00016438,2]
[326518502,1715038248530,-500.0,0.00016438,2]
[326518504,1715038248541,-154.76784823,0.00016438,2]
[326518505,1715038248551,-500.0,0.00016438,2]
[326518508,1715038248562,-500.0,0.00016438,2]
[326518509,1715038248572,-500.0,0.00016438,2]
[326518512,1715038248582,-3888.16,0.00016438,2]
[326518514,1715038248593,-500.0,0.00016438,2]
[326518515,1715038248603,-500.0,0.00016438,2]
[326518518,1715038248614,-500.0,0.00016438,2]
[326518520,1715038248624,-1378.83,0.00016438,2]
[326518522,1715038248635,-500.0,0.00016438,2]
[326518524,1715038248648,-500.0,0.00016438,2]
[326518525,1715038248658,-500.0,0.00016438,2]
[326518528,1715038248670,-665.37,0.00016438,2]
[326518530,1715038248680,-500.0,0.00016438,2]
[326518531,1715038248691,-500.0,0.00016438,2]
[326518534,1715038248702,-500.0,0.00016438,2]
[326518536,1715038248714,-500.0,0.00016438,2]
[326518537,1715038248727,-2292.45,0.00016438,2]
[326518538,1715038248737,-500.0,0.00016438,2]
[326518539,1715038248752,-4437.7,0.00016438,2]
[326518540,1715038248762,-500.0,0.00016438,2]
[326518541,1715038248773,-500.0,0.00016438,2]
[326518542,1715038248783,-500.0,0.00016438,2]
[326518543,1715038248793,-962.33,0.00016438,2]
[326518544,1715038248803,-500.0,0.00016438,2]
[326518545,1715038248813,-500.0,0.00016438,2]
[326518546,1715038248823,-500.0,0.00016438,2]
[326518547,1715038248833,-500.0,0.00016438,2]
[326518548,1715038248843,-500.0,0.00016438,2]
[326518549,1715038248853,-500.0,0.00016438,2]
[326518550,1715038248865,-4309.47,0.00016438,2]
[326518551,1715038248875,-500.0,0.00016438,2]
[326518552,1715038248885,-500.0,0.00016438,2]
[326518553,1715038248896,-500.0,0.00016438,2]
[326518554,1715038248906,-537.12,0.00016438,2]
[326518555,1715038248917,-500.0,0.00016438,2]
[326518556,1715038248928,-500.0,0.00016438,2]
[326518557,1715038248940,-500.0,0.00016438,2]
[326518559,1715038248952,-565.95946865,0.00016438,2]
[326518561,1715038248962,-521.76,0.00016438,2]
[326518563,1715038248972,-500.0,0.00016438,2]
[326518565,1715038248982,-2691.59,0.00016438,2]
[326518567,1715038248992,-500.0,0.00016438,2]
[326518569,1715038249002,-1127.78,0.00016438,2]
[326518571,1715038249012,-500.0,0.00016438,2]
[326518573,1715038249023,-500.0,0.00016438,2]
[326518575,1715038249034,-500.0,0.00016438,2]
[326518577,1715038249044,-237.87538637,0.00016438,2]
[326518579,1715038249054,-500.0,0.00016438,2]
[326518581,1715038249064,-500.0,0.00016438,2]
[326518583,1715038249074,-20394.94,0.00016438,2]
[326518585,1715038249085,-1007.29,0.00016438,2]
[326518587,1715038249105,-2525.73,0.00016438,2]
[326518589,1715038249126,-509.43,0.00016438,2]
[326518591,1715038249156,-1659.8,0.00016438,2]
[326518592,1715038249167,-500.0,0.00016438,2]
[326518594,1715038249177,-500.0,0.00016438,2]
[326518597,1715038249188,-572.96,0.00016438,2]
[326518598,1715038249199,-3902.87,0.00016438,2]
[326518600,1715038249209,-2536.67,0.00016438,2]
[326518603,1715038249220,-1104.7,0.00016438,2]
[326518605,1715038249230,-507.75,0.00016438,2]
[326518607,1715038249240,-2235.63,0.00016438,2]
[326518609,1715038249251,-991.74,0.00016438,2]
[326518611,1715038249262,-500.0,0.00016438,2]
[326518613,1715038249272,-500.0,0.00016438,2]
[326518615,1715038249281,-500.0,0.00016438,2]
[326518616,1715038249292,-500.0,0.00016438,2]
[326518619,1715038249302,-783.34,0.00016438,2]
[326518621,1715038249312,-500.0,0.00016438,2]
[326518623,1715038249322,-2617.62,0.00016438,2]
[326518625,1715038249333,-410.67762035,0.00016711,2]
[326518627,1715038249343,-154.95395268,0.00016711,2]
[326518629,1715038249354,-500.0,0.00016712,2]
[326518630,1715038249366,-500.0,0.00016712,2]
[326518633,1715038249377,-237.89332142,0.00016712,2]
[326518635,1715038249387,-500.0,0.00016712,2]
[326518637,1715038249397,-206.91276524,0.00016712,2]
[326518658,1715038249600,-293.08723476,0.00016712,2]
[326518660,1715038249610,-500.0,0.00016712,2]
[326518662,1715038249620,-500.0,0.00016712,2]
[326518664,1715038249630,-500.0,0.00016712,2]
[326518666,1715038249640,-500.0,0.00016712,2]
[326518668,1715038249652,-1240.5,0.00016712,2]
[326518670,1715038249662,-500.0,0.00016712,2]
[326518672,1715038249672,-500.0,0.00016712,2]
[326518674,1715038249682,-881.4,0.00016712,2]
[326518676,1715038249692,-500.0,0.00016712,2]
[326518678,1715038249701,-500.0,0.00016712,2]
[326518680,1715038249711,-500.0,0.00016712,2]
[326518683,1715038249722,-500.0,0.00016712,2]
[326518685,1715038249731,-500.0,0.00016712,2]
[326518687,1715038249742,-500.0,0.00016712,2]
[326518689,1715038249752,-500.0,0.00016712,2]
[326518691,1715038249762,-500.0,0.00016712,2]
[326518693,1715038249772,-500.0,0.00016712,2]
[326518695,1715038249782,-500.0,0.00016712,2]
[326518696,1715038249792,-1351.16,0.00016712,2]
[326518699,1715038249802,-542.97339731,0.00016712,2]
[326518701,1715038249812,-579.35,0.00016712,2]
[326518703,1715038249822,-568.25,0.00016712,2]
[326518705,1715038249832,-562.0,0.00016712,2]
[326518707,1715038249842,-500.0,0.00016712,2]
[326518709,1715038249853,-500.0,0.00016712,2]
[326518711,1715038249871,-648.66330989,0.00016712,2]
[326518713,1715038249882,-500.0,0.00016712,2]
[326518715,1715038249892,-340.71352673,0.00016712,2]
[326518717,1715038249903,-500.0,0.00016712,2]
[326518719,1715038249916,-500.0,0.00016712,2]
[326518721,1715038249927,-3888.16,0.00016712,2]
[326518723,1715038249939,-607.01943726,0.00016712,2]
[326518725,1715038249950,-500.0,0.00016712,2]
[326518727,1715038249960,-500.0,0.00016712,2]
[326518729,1715038249970,-1378.83,0.00016712,2]
[326518731,1715038249980,-500.0,0.00016712,2]
[326518733,1715038249990,-500.0,0.00016712,2]
[326518735,1715038250000,-500.0,0.00016712,2]
[326518737,1715038250010,-665.37,0.00016712,2]
[326518739,1715038250024,-500.0,0.00016712,2]
[326518741,1715038250034,-500.0,0.00016712,2]
[326518743,1715038250045,-500.0,0.00016712,2]
[326518745,1715038250056,-500.0,0.00016712,2]
[326518747,1715038250066,-2292.45,0.00016712,2]
[326518749,1715038250076,-500.0,0.00016712,2]
[326518751,1715038250087,-4437.7,0.00016712,2]
[326518753,1715038250098,-500.0,0.00016712,2]